fUSD/lending_fUSD_20241125
["ID","MTS","AMOUNT","RATE_DAILY","PERIOD"]
[343264172,1732536649158,-1098.83,0.00038904,21]
[343264173,1732536649167,-599.99,0.00038904,21]
[343264174,1732536649177,-500.0,0.00038904,21]
[343264175,1732536649187,-500.0,0.00038904,21]
[343264176,1732536649198,-536.64,0.00038904,21]
[343264177,1732536649207,-500.0,0.00038904,21]
[343264178,1732536649217,-365.64068997,0.00038904,21]
[343264179,1732536649226,-3141.32,0.00038904,21]
[343264180,1732536649236,-500.0,0.00038904,21]
[343264181,1732536649246,-500.0,0.00038904,21]
[343264182,1732536649256,-500.0,0.00038904,21]
[343264183,1732536649266,-1749.61,0.00038904,21]
[343264184,1732536649276,-520.31,0.00038904,21]
[343264185,1732536649286,-3086.47,0.00038904,21]
[343264186,1732536649295,-999.78,0.00038904,21]
[343264187,1732536649305,-500.0,0.00038904,21]
[343264188,1732536649315,-516.76,0.00038904,21]
[343264189,1732536649324,-599.84,0.00038904,21]
[343264190,1732536649336,-500.0,0.00038904,21]
[343264191,1732536649346,-500.0,0.00038904,21]
[343264192,1732536649355,-843.37,0.00038904,21]
[343264193,1732536649365,-500.0,0.00038904,21]
[343264194,1732536649375,-897.11,0.00038904,21]
[343264195,1732536649385,-1516.6,0.00038904,21]
[343264196,1732536649395,-4321.07,0.00038904,21]
[343264197,1732536649405,-500.0,0.00038904,21]
[343264198,1732536649414,-1501.72,0.00038904,21]
[343264199,1732536649424,-500.0,0.00038904,21]
[343264200,1732536649434,-500.0,0.00038904,21]
[343264201,1732536649445,-21441.79,0.00038904,21]
[343264202,1732536649454,-3276.7,0.00038904,21]
[343264203,1732536649464,-532.0,0.00038904,21]
[343264204,1732536649474,-500.0,0.00038904,21]
[343264205,1732536649483,-500.0,0.00038904,21]
[343264206,1732536649493,-2334.22,0.00038904,21]
[343264207,1732536649504,-1941.42,0.00038904,21]
[343264208,1732536649515,-500.0,0.00038904,21]
[343264209,1732536649524,-500.0,0.00038904,21]
[343264210,1732536649534,-500.0,0.00038904,21]
[343264211,1732536649543,-500.0,0.00038904,21]
[343264212,1732536649553,-500.0,0.00038904,21]
[343264213,1732536649563,-500.0,0.00038904,21]
[343264214,1732536649573,-500.0,0.00038904,21]
[343264215,1732536649584,-500.0,0.00038904,21]
[343264216,1732536649593,-1034.74,0.00038904,21]
[343264217,1732536649603,-548.14,0.00038904,21]
[343264218,1732536649612,-500.0,0.00038904,21]
[343264219,1732536649622,-1055.46,0.00038904,21]
[343264220,1732536649631,-500.0,0.00038904,21]
[343264221,1732536649641,-452.864551,0.00038919,2]
[343264222,1732536649651,-2605.7090593,0.00038919,2]
[343264223,1732536649660,-4304.4789608,0.00038919,2]
[343264224,1732536649670,-500.0,0.00038946,21]
[343264225,1732536649679,-500.0,0.00038946,21]
[343264226,1732536649689,-500.0,0.00038946,21]
[343264227,1732536649698,-500.0,0.00038946,21]
[343264228,1732536649708,-500.0,0.00038946,21]
[343264229,1732536649719,-257.62839866,0.00038946,21]
[343264230,1732536649729,-500.0,0.00038946,21]
[343264231,1732536649739,-500.0,0.00038946,21]
[343264232,1732536649749,-500.0,0.00038946,21]
[343264233,1732536649759,-500.0,0.00038946,21]
[343264234,1732536649769,-500.0,0.00038946,21]
[343264235,1732536649778,-500.0,0.00038946,21]
[343264236,1732536649787,-500.0,0.00038946,21]
[343264237,1732536649796,-500.0,0.00038946,21]
[343264238,1732536649806,-500.0,0.00038946,21]
[343264239,1732536649815,-243.1,0.00038946,21]
[343264240,1732536649825,-500.0,0.00038946,21]
[343264241,1732536649837,-500.0,0.00038946,21]
[343264242,1732536649846,-500.0,0.00038946,21]
[343264243,1732536649856,-500.0,0.00038946,21]
[343264244,1732536649866,-500.0,0.00038946,21]
[343264245,1732536649875,-500.0,0.00038946,21]
[343264246,1732536649885,-500.0,0.00038946,21]
[343264247,1732536649895,-587.87,0.00038946,21]
[343264248,1732536649904,-396.85199245,0.00038946,21]
[343264249,1732536649915,-500.0,0.00038946,21]
[343264250,1732536649924,-627.19,0.00038946,21]
[343264251,1732536649934,-500.0,0.00038946,21]
[343264252,1732536649945,-500.0,0.00038946,21]
[343264253,1732536649955,-500.0,0.00038946,21]
[343264254,1732536649965,-500.0,0.00038946,21]
[343264255,1732536649975,-500.0,0.00038946,21]
[343264256,1732536649985,-500.0,0.00038946,21]
[343264257,1732536649995,-500.0,0.00038946,21]
[343264258,1732536650005,-500.0,0.00038946,21]
[343264259,1732536650014,-771.52,0.00038946,21]
[343264260,1732536650023,-347.82,0.00038946,21]
[343264261,1732536650033,-500.0,0.00038946,21]
[343264262,1732536650043,-500.0,0.00038946,21]
[343264263,1732536650052,-500.0,0.00038946,21]
[343264264,1732536650062,-500.0,0.00038946,21]
[343264265,1732536650071,-500.0,0.00038946,21]
[343264266,1732536650081,-500.0,0.00038946,21]
[343264267,1732536650091,-500.0,0.00038946,21]
[343264268,1732536650102,-500.0,0.00038946,21]
[343264269,1732536650111,-289.29,0.00038946,21]
[343264270,1732536650120,-500.0,0.00038946,21]
[343264271,1732536650131,-500.0,0.00038946,21]
[343264272,1732536650140,-500.0,0.00038946,21]
[343264273,1732536650150,-500.0,0.00038946,21]
[343264274,1732536650159,-500.0,0.00038946,21]
[343264275,1732536650170,-422.68,0.00038946,21]
[343264276,1732536650180,-500.0,0.00038946,21]
[343264277,1732536650189,-500.0,0.00038946,21]
[343264278,1732536650199,-500.0,0.00038946,21]
[343264279,1732536650208,-500.0,0.00038946,21]
[343264280,1732536650218,-500.0,0.00038946,21]
[343264281,1732536650228,-658.45,0.00038946,21]
[343264282,1732536650238,-464.55,0.00038946,21]
[343264283,1732536650249,-1976.25,0.00038946,21]
[343264284,1732536650259,-500.0,0.00038946,21]
[343264285,1732536650268,-500.0,0.00038946,21]
[343264286,1732536650278,-500.0,0.00038946,21]
[343264287,1732536650288,-500.0,0.00038946,21]
[343264288,1732536650298,-500.0,0.00038946,21]
[343264289,1732536650307,-876.13,0.00038946,21]
[343264290,1732536650316,-500.0,0.00038946,21]
[343264291,1732536650325,-500.0,0.00038946,21]
[343264292,1732536650334,-500.0,0.00038946,21]
[343264293,1732536650343,-514.52,0.00038946,21]
[343264294,1732536650353,-500.0,0.00038946,21]
[343264295,1732536650362,-500.0,0.00038946,21]
[343264296,1732536650372,-500.0,0.00038946,21]
[343264297,1732536650381,-500.0,0.00038946,21]
[343264298,1732536650391,-500.0,0.00038946,21]
[343264299,1732536650401,-500.0,0.00038946,21]
[343264300,1732536650411,-500.0,0.00038946,21]
[343264301,1732536650420,-500.0,0.00038946,21]
[343264302,1732536650430,-500.0,0.00038946,21]
[343264303,1732536650439,-500.0,0.00038946,21]
[343264304,1732536650449,-500.0,0.00038946,21]
[343264305,1732536650459,-500.0,0.00038946,21]
[343264306,1732536650468,-543.63,0.00038946,21]
[343264307,1732536650477,-500.0,0.00038946,21]
[343264308,1732536650487,-7241.01,0.00038946,21]
[343264309,1732536650496,-1484.3,0.00038946,21]
[343264310,1732536650506,-500.0,0.00038946,21]
[343264311,1732536650517,-500.0,0.00038946,21]
[343264312,1732536650530,-500.0,0.00038946,21]
[343264313,1732536650539,-656.71,0.00038946,21]
[343264314,1732536650550,-500.0,0.00038946,21]
[343264315,1732536650559,-500.0,0.00038946,21]
[343264316,1732536650568,-498.62464122,0.00038946,21]
[343264317,1732536650577,-1219.29,0.00038946,21]
[343264318,1732536650586,-500.0,0.00038946,21]
[343264319,1732536650595,-1044.42,0.00038946,21]
[343264320,1732536650605,-500.0,0.00038946,21]
[343264321,1732536650616,-5313.62,0.00038946,21]
[343264322,1732536650626,-500.0,0.00038946,21]
[343264323,1732536650635,-635.51,0.00038946,21]
[343264324,1732536650646,-1329.57,0.00038946,21]
[343264325,1732536650655,-500.0,0.00038946,21]
[343264326,1732536650666,-500.0,0.00038946,21]
[343264327,1732536650677,-3316.78,0.00038946,21]
[343264328,1732536650687,-500.0,0.00038946,21]
[343264329,1732536650700,-500.0,0.00038946,21]
[343264330,1732536650709,-500.0,0.00038946,21]
[343264331,1732536650718,-500.0,0.00038946,21]
[343264332,1732536650729,-500.0,0.00038946,21]
[343264333,1732536650738,-913.11,0.00038946,21]
[343264334,1732536650748,-500.0,0.00038946,21]
[343264335,1732536650757,-528.36,0.00038946,21]
[343264336,1732536650766,-500.0,0.00038946,21]
[343264337,1732536650775,-1044.85,0.00038946,21]
[343264338,1732536650784,-500.0,0.00038946,21]
[343264339,1732536650793,-500.0,0.00038946,21]
[343264340,1732536650802,-500.0,0.00038946,21]
[343264341,1732536650811,-500.0,0.00038946,21]
[343264342,1732536650820,-500.0,0.00038946,21]
[343264343,1732536650829,-500.0,0.00038946,21]
[343264344,1732536650843,-500.0,0.00038946,21]
[343264345,1732536650853,-1961.52,0.00038946,21]
[343264346,1732536650862,-500.0,0.00038946,21]
[343264347,1732536650871,-500.0,0.00038946,21]
[343264348,1732536650883,-500.0,0.00038946,21]
[343264349,1732536650894,-1014.5,0.00038946,21]
[343264350,1732536650904,-500.0,0.00038946,21]
[343264351,1732536650914,-1204.64,0.00038946,21]
[343264352,1732536650923,-1000.0,0.00038946,21]
[343264353,1732536650933,-500.0,0.00038946,21]
[343264354,1732536650943,-500.0,0.00038946,21]
[343264355,1732536650954,-500.0,0.00038946,21]
[343264356,1732536650964,-500.0,0.00038946,21]
[343264357,1732536650974,-500.0,0.00038946,21]
[343264358,1732536650989,-500.0,0.00038946,21]
[343264359,1732536651005,-500.0,0.00038946,21]
[343264360,1732536651015,-2806.06,0.00038946,21]
[343264361,1732536651026,-500.0,0.00038946,21]
[343264362,1732536651035,-713.37,0.00038946,21]
[343264363,1732536651045,-500.0,0.00038946,21]
[343264364,1732536651056,-2152.31,0.00038946,21]
[343264365,1732536651066,-500.0,0.00038946,21]
[343264366,1732536651076,-500.0,0.00038946,21]
[343264367,1732536651085,-198.46623682,0.00038946,21]
[343264368,1732536651095,-500.0,0.00038946,21]
[343264369,1732536651110,-500.0,0.00038946,21]
[343264370,1732536651119,-2862.22,0.00038946,21]
[343264371,1732536651129,-500.0,0.00038946,21]
[343264372,1732536651138,-500.0,0.00038946,21]
[343264373,1732536651149,-500.0,0.00038946,21]
[343264374,1732536651159,-202.2,0.00038946,21]
[343264375,1732536651169,-500.0,0.00038946,21]
[343264376,1732536651180,-500.0,0.00038946,21]
[343264377,1732536651189,-500.0,0.00038946,21]
[343264378,1732536651199,-818.24,0.00038946,21]
[343264379,1732536651208,-594.32,0.00038946,21]
[343264380,1732536651218,-500.0,0.00038946,21]
[343264381,1732536651228,-5698.56,0.00038946,21]
[343264382,1732536651237,-2231.16,0.00038946,21]
[343264383,1732536651246,-500.0,0.00038946,21]
[343264384,1732536651256,-500.0,0.00038946,21]
[343264385,1732536651266,-500.0,0.00038946,21]
[343264386,1732536651276,-500.0,0.00038946,21]
[343264387,1732536651286,-3033.86,0.00038946,21]
[343264388,1732536651296,-500.0,0.00038946,21]
[343264389,1732536651305,-500.0,0.00038946,21]
[343264390,1732536651315,-450.0,0.00039,2]
[343264391,1732536651325,-1001.7885507,0.00039,2]
[343264392,1732536651335,-500.0,0.00039177,21]
[343264393,1732536651345,-500.0,0.00039177,21]
[343264394,1732536651355,-500.0,0.00039177,21]
[343264395,1732536651365,-500.0,0.00039177,21]
[343264396,1732536651374,-500.0,0.00039177,21]
[343264397,1732536651547,-500.0,0.00039177,21]
[343264398,1732536651569,-500.0,0.00039177,21]
[343264399,1732536651579,-500.0,0.00039177,21]
[343264400,1732536651589,-434.3,0.00039177,21]
[343264401,1732536651599,-500.0,0.00039177,21]
[343264402,1732536651609,-500.0,0.00039177,21]
[343264403,1732536651619,-500.0,0.00039177,21]
[343264404,1732536651628,-536.7,0.00039177,21]
[343264405,1732536651638,-500.0,0.00039177,21]
[343264406,1732536651648,-500.0,0.00039177,21]
[343264407,1732536651658,-286.98,0.00039177,21]
[343264408,1732536651668,-500.0,0.00039177,21]
[343264409,1732536651678,-341.22,0.00039177,21]
[343264410,1732536651687,-334.36,0.00039177,21]
[343264411,1732536651697,-500.0,0.00039177,21]
[343264412,1732536651708,-566.95,0.00039177,21]
[343264413,1732536651717,-437.31,0.00039177,21]
[343264414,1732536651727,-358.34,0.00039177,21]
[343264415,1732536651736,-500.0,0.00039177,21]
[343264416,1732536651746,-596.54,0.00039177,21]
[343264417,1732536651755,-500.0,0.00039177,21]
[343264418,1732536651765,-500.0,0.00039177,21]
[343264419,1732536651775,-500.0,0.00039177,21]
[343264420,1732536651785,-500.0,0.00039177,21]
[343264421,1732536651795,-500.0,0.00039177,21]
[343264422,1732536651804,-500.0,0.00039177,21]
[343264423,1732536651814,-272.42,0.00039177,21]
[343264424,1732536651823,-500.0,0.00039177,21]
[343264425,1732536651833,-615.05,0.00039177,21]
[343264426,1732536651842,-500.0,0.00039177,21]
[343264427,1732536651851,-537.52184938,0.00039177,21]
[343264428,1732536651861,-500.0,0.00039177,21]
[343264429,1732536651871,-500.0,0.00039177,21]
[343264430,1732536651881,-2082.25,0.00039177,21]
[343264431,1732536651891,-500.0,0.00039177,21]
[343264432,1732536651901,-500.0,0.00039177,21]
[343264433,1732536651910,-500.0,0.00039177,21]
[343264434,1732536651920,-500.0,0.00039177,21]
[343264435,1732536651929,-500.0,0.00039177,21]
[343264436,1732536651939,-500.0,0.00039177,21]
[343264437,1732536651948,-500.0,0.00039177,21]
[343264438,1732536651958,-500.0,0.00039177,21]
[343264439,1732536651968,-500.0,0.00039177,21]
[343264440,1732536651977,-500.0,0.00039177,21]
[343264441,1732536651987,-500.0,0.00039177,21]
[343264442,1732536651997,-314.33,0.00039177,21]
[343264443,1732536652007,-500.0,0.00039177,21]
[343264444,1732536652018,-500.0,0.00039177,21]
[343264445,1732536652027,-648.22,0.00039177,21]
[343264446,1732536652037,-500.0,0.00039177,21]
[343264447,1732536652046,-500.0,0.00039177,21]
[343264448,1732536652056,-500.0,0.00039177,21]
[343264449,1732536652066,-500.0,0.00039177,21]
[343264450,1732536652075,-500.0,0.00039177,21]
[343264451,1732536652085,-237.68,0.00039177,21]
[343264452,1732536652097,-500.0,0.00039177,21]
[343264453,1732536652108,-500.0,0.00039177,21]
[343264454,1732536652118,-500.0,0.00039177,21]
[343264455,1732536652127,-366.93,0.00039177,21]
[343264456,1732536652139,-1204.4,0.00039177,21]
[343264457,1732536652149,-500.0,0.00039177,21]
[343264458,1732536652158,-500.0,0.00039177,21]
[343264459,1732536652169,-500.0,0.00039177,21]
[343264460,1732536652180,-500.0,0.00039177,21]
[343264461,1732536652190,-500.0,0.00039177,21]
[343264462,1732536652200,-641.75,0.00039177,21]
[343264463,1732536652209,-500.0,0.00039177,21]
[343264464,1732536652219,-500.0,0.00039177,21]
[343264465,1732536652230,-280.76,0.00039177,21]
[343264466,1732536652240,-183.51,0.00039177,21]
[343264467,1732536652250,-646.60024481,0.00039177,21]
[343264468,1732536652259,-500.0,0.00039177,21]
[343264469,1732536652270,-509.74,0.00039177,21]
[343264470,1732536652280,-500.0,0.00039177,21]
[343264471,1732536652290,-500.0,0.00039177,21]
[343264472,1732536652300,-500.0,0.00039177,21]
[343264473,1732536652309,-500.0,0.00039177,21]
[343264474,1732536652318,-500.0,0.00039177,21]
[343264475,1732536652328,-500.0,0.00039177,21]
[343264476,1732536652338,-535.55,0.00039177,21]
[343264477,1732536652347,-500.0,0.00039177,21]
[343264478,1732536652357,-500.0,0.00039177,21]
[343264479,1732536652367,-555.01,0.00039177,21]
[343264480,1732536652376,-500.0,0.00039177,21]
[343264481,1732536652386,-425.51,0.00039177,21]
[343264482,1732536652395,-500.0,0.00039177,21]
[343264483,1732536652404,-500.0,0.00039177,21]
[343264484,1732536652417,-500.0,0.00039177,21]
[343264485,1732536652428,-500.0,0.00039177,21]
[343264486,1732536652444,-634.92,0.00039177,21]
[343264487,1732536652453,-500.0,0.00039177,21]
[343264488,1732536652462,-500.0,0.00039177,21]
[343264489,1732536652472,-231.61348289,0.00039177,21]
[343264490,1732536652481,-500.0,0.00039177,21]
[343264491,1732536652490,-500.0,0.00039177,7]
[343264492,1732536652499,-500.0,0.00039177,21]
[343264493,1732536652508,-500.0,0.00039177,21]
[343264494,1732536652517,-500.0,0.00039177,21]
[343264495,1732536652527,-500.0,0.00039177,21]
[343264496,1732536652536,-500.0,0.00039177,21]
[343264497,1732536652546,-573.77,0.00039177,21]
[343264498,1732536652556,-500.0,0.00039177,21]
[343264499,1732536652565,-500.0,0.00039177,21]
[343264500,1732536652575,-817.33,0.00039177,21]
[343264501,1732536652585,-500.0,0.00039177,21]
[343264502,1732536652594,-500.0,0.00039177,21]
[343264503,1732536652604,-500.0,0.00039177,21]
[343264504,1732536652613,-674.77,0.00039177,2]
[343264505,1732536652623,-500.0,0.00039177,21]
[343264506,1732536652632,-500.0,0.00039177,21]
[343264507,1732536652642,-5549.98,0.00039177,21]
[343264508,1732536652651,-500.0,0.00039177,21]
[343264509,1732536652661,-500.0,0.00039177,21]
[343264510,1732536652670,-500.0,0.00039177,21]
[343264511,1732536652680,-505.17864359,0.00039177,21]
[343264512,1732536652689,-500.0,0.00039177,21]
[343264513,1732536652699,-500.0,0.00039177,21]
[343264514,1732536652708,-574.77,0.00039177,21]
[343264515,1732536652718,-500.0,0.00039177,21]
[343264516,1732536652727,-500.0,0.00039177,21]
[343264517,1732536652737,-685.58,0.00039177,21]
[343264518,1732536652747,-500.0,0.00039177,21]
[343264519,1732536652757,-500.0,0.00039177,21]
[343264520,1732536652766,-500.0,0.00039177,21]
[343264521,1732536652775,-500.0,0.00039177,21]
[343264522,1732536652785,-500.0,0.00039177,21]
[343264523,1732536652795,-500.0,0.00039177,21]
[343264524,1732536652804,-500.0,0.00039177,21]
[343264525,1732536652813,-500.0,0.00039177,21]
[343264526,1732536652823,-500.0,0.00039177,21]
[343264527,1732536652833,-500.0,0.00039177,21]
[343264528,1732536652842,-566.0192205,0.00039177,21]
[343264529,1732536652852,-702.08,0.00039177,21]
[343264530,1732536652861,-500.0,0.00039177,21]
[343264531,1732536652871,-500.0,0.00039177,21]
[343264532,1732536652881,-500.0,0.00039177,21]
[343264533,1732536652890,-500.0,0.00039177,21]
[343264534,1732536652900,-500.0,0.00039177,21]
[343264535,1732536652909,-500.0,0.00039177,21]
[343264536,1732536652918,-500.0,0.00039177,21]
[343264537,1732536652928,-500.0,0.00039177,21]
[343264538,1732536652938,-500.0,0.00039177,21]
[343264539,1732536652947,-500.0,0.00039177,21]
[343264540,1732536652957,-500.0,0.00039177,21]
[343264541,1732536652966,-500.0,0.00039177,21]
[343264542,1732536652977,-500.0,0.00039177,21]
[343264543,1732536652987,-2182.69,0.00039177,21]
[343264544,1732536652996,-500.0,0.00039177,21]
[343264545,1732536653006,-500.0,0.00039177,21]
[343264546,1732536653017,-500.0,0.00039177,21]
[343264547,1732536653026,-507.30332011,0.00039177,21]
[343264548,1732536653036,-500.0,0.00039177,21]
[343264549,1732536653046,-500.0,0.00039177,21]
[343264550,1732536653056,-500.0,0.00039178,21]
[343264551,1732536653065,-467.3,0.00039178,21]
[343264552,1732536653075,-542.94,0.00039178,21]
[343264553,1732536653084,-500.0,0.00039178,21]
[343264554,1732536653094,-500.0,0.00039178,21]
[343264555,1732536653107,-500.0,0.00039178,21]
[343264556,1732536653116,-500.0,0.00039178,21]
[343264557,1732536653126,-500.0,0.00039178,21]
[343264558,1732536653135,-286.25,0.00039178,21]
[343264559,1732536653146,-489.76,0.00039178,21]
[343264560,1732536653156,-389.12,0.00039178,21]
[343264561,1732536653166,-500.0,0.00039178,21]
[343264562,1732536653179,-322.16,0.00039178,21]
[343264563,1732536653189,-500.0,0.00039178,21]
[343264564,1732536653199,-500.0,0.00039178,21]
[343264565,1732536653209,-500.0,0.00039178,21]
[343264566,1732536653219,-500.0,0.00039178,21]
[343264567,1732536653228,-500.0,0.00039178,21]
[343264568,1732536653237,-500.0,0.00039178,21]
[343264569,1732536653247,-500.0,0.00039178,21]
[343264570,1732536653256,-500.0,0.00039178,21]
[343264571,1732536653266,-500.0,0.00039178,21]
[343264572,1732536653276,-500.0,0.00039178,21]
[343264573,1732536653285,-500.0,0.00039178,21]
[343264574,1732536653295,-500.0,0.00039178,21]
[343264575,1732536653304,-605.98324687,0.00039178,21]
[343264576,1732536653314,-675.2,0.00039178,21]
[343264577,1732536653323,-500.0,0.00039178,21]
[343264578,1732536653332,-500.0,0.00039178,21]
[343264579,1732536653342,-1143.4,0.00039178,21]
[343264580,1732536653351,-500.0,0.00039178,21]
[343264581,1732536653360,-553.02,0.00039178,21]
[343264582,1732536653369,-500.0,0.00039178,21]
[343264583,1732536653379,-497.06,0.00039178,21]
[343264584,1732536653389,-500.0,0.00039178,21]
[343264585,1732536653398,-660.04,0.00039178,21]
[343264586,1732536653407,-500.0,0.00039178,21]
[343264587,1732536653416,-500.0,0.00039178,21]
[343264588,1732536653425,-500.0,0.00039178,21]
[343264589,1732536653434,-550.37,0.00039178,21]
[343264590,1732536653443,-500.0,0.00039178,120]
[343264591,1732536653452,-915.74,0.00039178,21]
[343264592,1732536653461,-500.0,0.00039178,21]
[343264593,1732536653470,-500.0,0.00039178,21]
[343264594,1732536653480,-529.4,0.00039178,21]
[343264595,1732536653489,-500.0,0.00039178,21]
[343264596,1732536653498,-500.0,0.00039178,21]
[343264597,1732536653507,-500.0,0.00039178,21]
[343264598,1732536653516,-500.0,0.00039178,21]
[343264599,1732536653525,-500.0,0.00039178,21]
[343264600,1732536653534,-500.0,0.00039178,21]
[343264601,1732536653543,-661.32,0.00039178,21]
[343264602,1732536653553,-500.0,0.00039178,21]
[343264603,1732536653562,-592.89,0.00039178,21]
[343264604,1732536653571,-500.0,0.00039178,21]
[343264605,1732536653581,-500.0,0.00039178,21]
[343264606,1732536653590,-500.0,0.00039178,21]
[343264607,1732536653599,-446.71,0.00039178,21]
[343264608,1732536653608,-500.0,0.00039178,21]
[343264609,1732536653618,-500.0,0.00039178,21]
[343264610,1732536653627,-500.0,0.00039178,21]
[343264611,1732536653636,-501.9,0.00039178,21]
[343264612,1732536653646,-500.0,0.00039178,21]
[343264613,1732536653655,-500.0,0.00039178,21]
[343264614,1732536653664,-500.0,0.00039178,21]
[343264615,1732536653674,-179.56,0.00039178,21]
[343264616,1732536653683,-625.06,0.00039178,21]
[343264617,1732536653692,-500.0,0.00039178,21]
[343264618,1732536653701,-890.91,0.00039178,21]
[343264619,1732536653710,-500.0,0.00039178,21]
[343264620,1732536653720,-596.91215187,0.00039178,21]
[343264621,1732536653729,-308.49537363,0.00039178,21]
[343264622,1732536653738,-500.0,0.00039178,21]
[343264623,1732536653747,-500.0,0.00039178,21]
[343264624,1732536653756,-500.0,0.00039178,21]
[343264625,1732536653765,-403.86435311,0.00039178,21]
[343264626,1732536653775,-500.0,0.00039178,21]
[343264627,1732536653784,-500.0,0.00039178,21]
[343264628,1732536653793,-500.0,0.00039178,21]
[343264629,1732536653803,-505.38,0.00039178,21]
[343264630,1732536653812,-500.0,0.00039178,21]
[343264631,1732536653821,-478.95588713,0.00039178,21]
[343264632,1732536653830,-500.0,0.00039178,21]
[343264633,1732536653840,-500.0,0.00039178,21]
[343264634,1732536653849,-500.0,0.00039178,21]
[343264635,1732536653859,-500.0,0.00039178,21]
[343264636,1732536653868,-500.0,0.00039178,21]
[343264637,1732536653877,-500.0,0.00039178,21]
[343264638,1732536653886,-500.0,0.00039178,21]
[343264639,1732536653895,-500.0,0.00039178,21]
[343264640,1732536653905,-584.61,0.00039178,21]
[343264641,1732536653914,-500.0,0.00039178,21]
[343264642,1732536653923,-500.0,0.00039178,21]
[343264643,1732536653933,-903.22,0.00039178,21]
[343264644,1732536653942,-500.0,0.00039178,21]
[343264645,1732536653951,-500.0,0.00039178,21]
[343264646,1732536654009,-500.0,0.00039178,21]
[343264647,1732536654019,-500.0,0.00039178,21]
[343264648,1732536654028,-500.0,0.00039178,21]
[343264649,1732536654037,-500.0,0.00039178,21]
[343264650,1732536654046,-500.0,0.00039178,21]
[343264651,1732536654055,-783.23,0.00039178,21]
[343264652,1732536654064,-500.0,0.00039178,21]
[343264653,1732536654073,-1125.03703634,0.00039178,21]
[343264654,1732536654082,-500.0,0.00039178,21]
[343264655,1732536654092,-500.0,0.00039178,21]
[343264656,1732536654104,-500.0,0.00039178,21]
[343264657,1732536654113,-500.0,0.00039178,21]
[343264658,1732536654123,-500.0,0.00039178,21]
[343264659,1732536654132,-500.0,0.00039178,21]
[343264660,1732536654142,-500.0,0.00039178,21]
[343264661,1732536654151,-1024.03,0.00039178,21]
[343264662,1732536654160,-500.0,0.00039178,21]
[343264663,1732536654169,-500.0,0.00039178,21]
[343264664,1732536654178,-500.0,0.00039178,21]
[343264665,1732536654188,-500.0,0.00039178,21]
[343264666,1732536654198,-500.0,0.00039178,21]
[343264667,1732536654207,-500.0,0.00039178,21]
[343264668,1732536654216,-500.0,0.00039178,21]
[343264669,1732536654225,-500.0,0.00039178,21]
[343264670,1732536654235,-441.53,0.00039178,21]
[343264671,1732536654244,-500.0,0.00039178,21]